[Event "Early-Titled-Tuesday-Blitz-May-07-2024"]
[Site "Chess.com"]
[Date "2024.05.07"]
[Round "6"]
[White "Kacparov"]
[Black "ahmedkandiliii"]
[Result "1-0"]
[WhiteElo "2904"]
[BlackElo "2642"]
[TimeControl "180+1"]
[EndTime "9:11:28 PDT"]
[Termination "Kacparov won by resignation"]

1. e4 {[%clk 0:03:00.9]} 1... e5 {[%clk 0:02:57]} 2. Nf3 {[%clk 0:03:00.7]} 2...
Nc6 {[%clk 0:02:56.7]} 3. Bc4 {[%clk 0:03:00.9]} 3... Nf6 {[%clk 0:02:56.4]} 4.
d3 {[%clk 0:03:01.1]} 4... Bc5 {[%clk 0:02:55.7]} 5. c3 {[%clk 0:03:01.7]} 5...
d6 {[%clk 0:02:53.6]} 6. Bb3 {[%clk 0:03:02]} 6... a6 {[%clk 0:02:52.9]} 7. h3
{[%clk 0:03:02.3]} 7... h6 {[%clk 0:02:50.4]} 8. Nbd2 {[%clk 0:03:02.6]} 8...
O-O {[%clk 0:02:50.6]} 9. Nh2 {[%clk 0:03:01.4]} 9... Ba7 {[%clk 0:02:51.3]} 10.
Ndf1 {[%clk 0:03:01.2]} 10... d5 {[%clk 0:02:48.1]} 11. Qf3 {[%clk 0:03:00.6]}
11... Be6 {[%clk 0:02:43.1]} 12. Ng3 {[%clk 0:02:58.6]} 12... Ne7 {[%clk
0:02:20]} 13. Bxh6 {[%clk 0:02:50]} 13... dxe4 {[%clk 0:02:02.4]} 14. dxe4
{[%clk 0:02:49.4]} 14... Bxb3 {[%clk 0:02:02.6]} 15. axb3 {[%clk 0:02:49.4]}
15... gxh6 {[%clk 0:01:58]} 16. Qxf6 {[%clk 0:02:48.6]} 16... Ng6 {[%clk
0:01:58.6]} 17. Qf3 {[%clk 0:02:30.8]} 17... Qg5 {[%clk 0:01:29.5]} 18. Nf5
{[%clk 0:02:17.6]} 18... Kh7 {[%clk 0:01:03.1]} 19. O-O {[%clk 0:02:10.8]} 19...
Nf4 {[%clk 0:01:00.3]} 20. Ng4 {[%clk 0:02:07.2]} 20... h5 {[%clk 0:00:48.8]}
21. Nxe5 {[%clk 0:01:53.4]} 21... Rg8 {[%clk 0:00:43.1]} 22. Kh1 {[%clk
0:01:35.3]} 22... f6 {[%clk 0:00:25.9]} 23. Nd7 {[%clk 0:01:09.2]} 23... Rad8
{[%clk 0:00:23.3]} 24. Nxf6+ {[%clk 0:01:06.5]} 24... Qxf6 {[%clk 0:00:21.1]}
25. Qxf4 {[%clk 0:01:07]} 25... Rg5 {[%clk 0:00:16.2]} 26. Rad1 {[%clk
0:01:02.1]} 26... Rdg8 {[%clk 0:00:15.9]} 27. Rd7+ {[%clk 0:00:59.4]} 27... Kh8
{[%clk 0:00:15.8]} 28. g3 {[%clk 0:00:58.3]} 28... Qc6 {[%clk 0:00:10.4]} 29.
Rd5 {[%clk 0:00:44.9]} 29... Qe6 {[%clk 0:00:06.2]} 30. Kh2 {[%clk 0:00:40.2]}
30... Qc6 {[%clk 0:00:05.4]} 31. Ne7 {[%clk 0:00:37.3]} 31... Qe6 {[%clk
0:00:02.3]} 32. Nxg8 {[%clk 0:00:35.3]} 32... Rxd5 {[%clk 0:00:02.5]} 33. exd5
{[%clk 0:00:33.3]} 33... Qxg8 {[%clk 0:00:02.7]} 34. Qh6+ {[%clk 0:00:33.3]}
34... Qh7 {[%clk 0:00:03.2]} 35. Qxh7+ {[%clk 0:00:33.7]} 35... Kxh7 {[%clk
0:00:02.6]} 36. Re1 {[%clk 0:00:33.6]} 36... Bxf2 {[%clk 0:00:02.7]} 37. Re7+
{[%clk 0:00:33.6]} 37... Kg6 {[%clk 0:00:03.6]} 38. Rxc7 {[%clk 0:00:33.9]}
38... b6 {[%clk 0:00:04.2]} 39. d6 {[%clk 0:00:33.7]} 39... Kf6 {[%clk
0:00:04.5]} 40. b4 {[%clk 0:00:33.6]} 40... Ke6 {[%clk 0:00:04.7]} 41. d7 {[%clk
0:00:32.3]} 41... Ke7 {[%clk 0:00:05.6]} 42. Kg2 {[%clk 0:00:32.3]} 42... Be3
{[%clk 0:00:05.2]} 43. Kf3 {[%clk 0:00:32.3]} 43... Bg5 {[%clk 0:00:05.2]} 44.
Rb7 {[%clk 0:00:32.3]} 44... Kd8 {[%clk 0:00:05.2]} 45. Ke4 {[%clk 0:00:32.1]}
45... Be7 {[%clk 0:00:04.7]} 46. Rxb6 {[%clk 0:00:31.8]} 46... Bd6 {[%clk
0:00:05.1]} 47. Rxd6 {[%clk 0:00:31.5]} 47... a5 {[%clk 0:00:05.8]} 48. bxa5
{[%clk 0:00:31.4]} 48... h4 {[%clk 0:00:06.7]} 49. gxh4 {[%clk 0:00:31.6]} 1-0

[Event "Early-Titled-Tuesday-Blitz-May-07-2024"]
[Site "Chess.com"]
[Date "2024.05.07"]
[Round "6"]
[White "GMthekingindian"]
[Black "ChelsieMonica"]
[Result "0-1"]
[WhiteElo "2250"]
[BlackElo "2520"]
[TimeControl "180+1"]
[EndTime "9:11:28 PDT"]
[Termination "ChelsieMonica won on time"]

1. d4 {[%clk 0:02:45.6]} 1... d6 {[%clk 0:03:00]} 2. Nf3 {[%clk 0:02:46.1]} 2...
c6 {[%clk 0:03:00.8]} 3. g3 {[%clk 0:02:46.7]} 3... g6 {[%clk 0:03:01.5]} 4. Bg2
{[%clk 0:02:47.6]} 4... Bg7 {[%clk 0:03:02.1]} 5. O-O {[%clk 0:02:48.5]} 5...
Nf6 {[%clk 0:03:03]} 6. c4 {[%clk 0:02:48.9]} 6... O-O {[%clk 0:03:03.9]} 7. Nc3
{[%clk 0:02:47.2]} 7... Be6 {[%clk 0:03:04.3]} 8. b3 {[%clk 0:02:46.6]} 8... Qc8
{[%clk 0:03:04.8]} 9. Re1 {[%clk 0:02:46.3]} 9... Bh3 {[%clk 0:03:04.8]} 10. Bh1
{[%clk 0:02:46.8]} 10... h5 {[%clk 0:03:04.9]} 11. Bb2 {[%clk 0:02:47.3]} 11...
Na6 {[%clk 0:03:04.3]} 12. e4 {[%clk 0:02:46.9]} 12... Nh7 {[%clk 0:03:03.8]}
13. e5 {[%clk 0:02:45.1]} 13... Nc7 {[%clk 0:03:04.1]} 14. exd6 {[%clk
0:02:41.8]} 14... exd6 {[%clk 0:03:04.1]} 15. Qd2 {[%clk 0:02:40.5]} 15... Qd7
{[%clk 0:02:58.5]} 16. Ne4 {[%clk 0:02:36.2]} 16... Rfe8 {[%clk 0:02:56.4]} 17.
c5 {[%clk 0:02:29.8]} 17... Rxe4 {[%clk 0:02:41]} 18. Rxe4 {[%clk 0:02:29.3]}
18... dxc5 {[%clk 0:02:41.5]} 19. Re2 {[%clk 0:01:42]} 19... Rd8 {[%clk
0:02:35]} 20. Rd1 {[%clk 0:01:26.1]} 20... Qc8 {[%clk 0:02:23.7]} 21. Qe1 {[%clk
0:01:17.8]} 21... Bg4 {[%clk 0:02:12.9]} 22. dxc5 {[%clk 0:01:16.4]} 22... Bxb2
{[%clk 0:02:10.6]} 23. Rxb2 {[%clk 0:01:17.3]} 23... Nd5 {[%clk 0:02:10.9]} 24.
Bg2 {[%clk 0:01:08.3]} 24... Re8 {[%clk 0:02:09.6]} 25. Re2 {[%clk 0:01:07.6]}
25... Rxe2 {[%clk 0:02:09.2]} 26. Qxe2 {[%clk 0:01:07.9]} 26... Nc3 {[%clk
0:02:09.2]} 27. Qd3 {[%clk 0:01:03.2]} 27... Nxd1 {[%clk 0:02:09.1]} 28. Qxd1
{[%clk 0:01:04.1]} 28... Ng5 {[%clk 0:02:06.6]} 29. Qd3 {[%clk 0:00:58.3]} 29...
Bxf3 {[%clk 0:02:02.3]} 30. Bxf3 {[%clk 0:00:58.1]} 30... Qc7 {[%clk 0:01:29.8]}
31. Bg2 {[%clk 0:00:57.3]} 31... Qe7 {[%clk 0:01:29]} 32. Qe3 {[%clk 0:00:52.3]}
32... Qxe3 {[%clk 0:01:21]} 33. fxe3 {[%clk 0:00:52.6]} 33... Ne6 {[%clk
0:01:21.8]} 34. b4 {[%clk 0:00:51.7]} 34... Kg7 {[%clk 0:01:22.7]} 35. a4 {[%clk
0:00:49.1]} 35... Kf6 {[%clk 0:01:23.1]} 36. Kf2 {[%clk 0:00:41]} 36... Ke5
{[%clk 0:01:23.1]} 37. Ke2 {[%clk 0:00:40]} 37... a5 {[%clk 0:01:22]} 38. Kd3
{[%clk 0:00:15.6]} 38... axb4 {[%clk 0:01:20.6]} 39. Kc4 {[%clk 0:00:16.3]}
39... b3 {[%clk 0:01:13.8]} 40. Kxb3 {[%clk 0:00:16.8]} 40... Nxc5+ {[%clk
0:01:13.9]} 41. Kb4 {[%clk 0:00:14.8]} 41... Kd6 {[%clk 0:01:13.1]} 42. Bf1
{[%clk 0:00:07.8]} 42... Ne4 {[%clk 0:01:11.9]} 43. Bc4 {[%clk 0:00:05]} 43...
f6 {[%clk 0:01:08.4]} 44. Bf7 {[%clk 0:00:04.3]} 44... g5 {[%clk 0:01:08.9]} 45.
Bxh5 {[%clk 0:00:04.2]} 45... c5+ {[%clk 0:01:07.4]} 46. Kc4 {[%clk 0:00:02.6]}
46... Nd2+ {[%clk 0:01:07.1]} 47. Kd3 {[%clk 0:00:02.3]} 47... Nf1 {[%clk
0:01:07]} 48. h4 {[%clk 0:00:01.5]} 48... Nxg3 {[%clk 0:01:06.6]} 49. hxg5
{[%clk 0:00:01.5]} 49... fxg5 {[%clk 0:01:07.5]} 50. Bg4 {[%clk 0:00:01.6]}
50... b6 {[%clk 0:01:07.4]} 51. Kc4 {[%clk 0:00:02]} 51... Ne4 {[%clk 0:01:06]}
52. a5 {[%clk 0:00:01.5]} 52... bxa5 {[%clk 0:01:05.4]} 53. Kb5 {[%clk
0:00:02.1]} 53... Nf2 {[%clk 0:01:04.5]} 54. Be2 {[%clk 0:00:01.6]} 54... g4
{[%clk 0:01:03.7]} 55. Kxa5 {[%clk 0:00:01.7]} 55... g3 {[%clk 0:01:04.1]} 56.
Bf3 {[%clk 0:00:01.4]} 56... Ng4 {[%clk 0:01:04.6]} 0-1

[Event "Early-Titled-Tuesday-Blitz-May-07-2024"]
[Site "Chess.com"]
[Date "2024.05.07"]
[Round "6"]
[White "Artemiki"]
[Black "Zhigalko_Sergei"]
[Result "0-1"]
[WhiteElo "2501"]
[BlackElo "2874"]
[TimeControl "180+1"]
[EndTime "9:11:29 PDT"]
[Termination "Zhigalko_Sergei won on time"]

1. e4 {[%clk 0:03:00.9]} 1... c5 {[%clk 0:03:00]} 2. g3 {[%clk 0:03:00.2]} 2...
Nc6 {[%clk 0:02:59.9]} 3. Bg2 {[%clk 0:03:00.3]} 3... Nf6 {[%clk 0:02:50.2]} 4.
Ne2 {[%clk 0:03:00.5]} 4... e5 {[%clk 0:02:44.3]} 5. d3 {[%clk 0:02:44.3]} 5...
d5 {[%clk 0:02:13.1]} 6. O-O {[%clk 0:02:39.6]} 6... d4 {[%clk 0:02:01.3]} 7. f4
{[%clk 0:02:35.4]} 7... Be7 {[%clk 0:02:00.1]} 8. Nd2 {[%clk 0:02:30.1]} 8...
O-O {[%clk 0:01:55.8]} 9. f5 {[%clk 0:02:16.7]} 9... Rb8 {[%clk 0:01:54.3]} 10.
a4 {[%clk 0:02:12.3]} 10... a6 {[%clk 0:01:54.4]} 11. h3 {[%clk 0:02:07.5]}
11... b5 {[%clk 0:01:54.5]} 12. g4 {[%clk 0:02:03.1]} 12... h6 {[%clk
0:01:54.6]} 13. axb5 {[%clk 0:02:00.2]} 13... axb5 {[%clk 0:01:54.6]} 14. Nf3
{[%clk 0:01:58.9]} 14... c4 {[%clk 0:01:51.5]} 15. g5 {[%clk 0:01:56.7]} 15...
hxg5 {[%clk 0:01:51.6]} 16. Nxg5 {[%clk 0:01:47.7]} 16... Nb4 {[%clk 0:01:45.3]}
17. Nf3 {[%clk 0:01:33.7]} 17... Nd7 {[%clk 0:01:12.6]} 18. Ng3 {[%clk
0:01:29.4]} 18... Rb6 {[%clk 0:01:07.6]} 19. Nh5 {[%clk 0:01:16.7]} 19... Rc6
{[%clk 0:00:54.3]} 20. Rf2 {[%clk 0:00:47.6]} 20... Bb7 {[%clk 0:00:46.6]} 21.
Bf1 {[%clk 0:00:43.8]} 21... Re8 {[%clk 0:00:20.3]} 22. Rg2 {[%clk 0:00:40.6]}
22... Bf8 {[%clk 0:00:20.8]} 23. Qe1 {[%clk 0:00:22.1]} 23... cxd3 {[%clk
0:00:18.7]} 24. Bxd3 {[%clk 0:00:23]} 24... g6 {[%clk 0:00:09.7]} 25. Qg3 {[%clk
0:00:14.9]} 25... Qc7 {[%clk 0:00:08.2]} 26. Bd2 {[%clk 0:00:06.4]} 26... Nxd3
{[%clk 0:00:02.9]} 27. cxd3 {[%clk 0:00:06.4]} 27... Nc5 {[%clk 0:00:02.7]} 28.
Nh4 {[%clk 0:00:05]} 28... Bg7 {[%clk 0:00:02.2]} 29. fxg6 {[%clk 0:00:03.2]}
29... fxg6 {[%clk 0:00:03.1]} 30. Nxg7 {[%clk 0:00:03.3]} 30... Qxg7 {[%clk
0:00:01.5]} 0-1

[Event "Early-Titled-Tuesday-Blitz-May-07-2024"]
[Site "Chess.com"]
[Date "2024.05.07"]
[Round "6"]
[White "K_A_S_T_O_R"]
[Black "wild3000"]
[Result "1-0"]
[WhiteElo "2857"]
[BlackElo "2519"]
[TimeControl "180+1"]
[EndTime "9:11:29 PDT"]
[Termination "K_A_S_T_O_R won by resignation"]

1. e4 {[%clk 0:03:00.9]} 1... e6 {[%clk 0:02:38.9]} 2. d4 {[%clk 0:03:00.1]}
2... d5 {[%clk 0:02:38.3]} 3. Nc3 {[%clk 0:03:00.5]} 3... Bb4 {[%clk 0:02:36.7]}
4. e5 {[%clk 0:03:00.4]} 4... Ne7 {[%clk 0:02:34]} 5. Bd2 {[%clk 0:03:00.1]}
5... c5 {[%clk 0:02:32.2]} 6. Nb5 {[%clk 0:02:59.3]} 6... Bxd2+ {[%clk
0:02:29.5]} 7. Qxd2 {[%clk 0:03:00.2]} 7... O-O {[%clk 0:02:28.5]} 8. c3 {[%clk
0:02:59.4]} 8... Nbc6 {[%clk 0:02:25.2]} 9. f4 {[%clk 0:02:58.6]} 9... cxd4
{[%clk 0:02:22.5]} 10. cxd4 {[%clk 0:02:57.9]} 10... a6 {[%clk 0:02:21.1]} 11.
Nc3 {[%clk 0:02:52.4]} 11... Nf5 {[%clk 0:02:15.9]} 12. Nf3 {[%clk 0:02:52.7]}
12... Qb6 {[%clk 0:02:16]} 13. Rd1 {[%clk 0:02:48.6]} 13... f6 {[%clk
0:01:57.7]} 14. Be2 {[%clk 0:02:43.2]} 14... Bd7 {[%clk 0:01:51.9]} 15. O-O
{[%clk 0:02:38.9]} 15... Rac8 {[%clk 0:01:07.3]} 16. g4 {[%clk 0:02:30.8]} 16...
Nfe7 {[%clk 0:01:06.2]} 17. Kg2 {[%clk 0:02:27]} 17... fxe5 {[%clk 0:01:02.4]}
18. Nxe5 {[%clk 0:02:21.3]} 18... Nxe5 {[%clk 0:01:00.8]} 19. fxe5 {[%clk
0:02:21.7]} 19... Ng6 {[%clk 0:00:58.3]} 20. Kg3 {[%clk 0:02:20]} 20... Rxf1
{[%clk 0:00:53.1]} 21. Rxf1 {[%clk 0:02:19.1]} 21... Qd8 {[%clk 0:00:53.3]} 22.
g5 {[%clk 0:02:18.3]} 22... Qe7 {[%clk 0:00:50.8]} 23. h4 {[%clk 0:02:17.1]}
23... Rf8 {[%clk 0:00:50]} 24. Rxf8+ {[%clk 0:02:15.6]} 24... Nxf8 {[%clk
0:00:49.4]} 25. Bd3 {[%clk 0:02:14.1]} 25... b5 {[%clk 0:00:43.5]} 26. Ne2
{[%clk 0:02:13.1]} 26... Be8 {[%clk 0:00:38.5]} 27. Nf4 {[%clk 0:02:10.3]} 27...
Bg6 {[%clk 0:00:36.3]} 28. Qc3 {[%clk 0:02:00.7]} 28... Bxd3 {[%clk 0:00:34.2]}
29. Qxd3 {[%clk 0:01:55.3]} 29... Qc7 {[%clk 0:00:32.1]} 30. Qd2 {[%clk
0:01:46.6]} 30... Qc4 {[%clk 0:00:30.2]} 31. b3 {[%clk 0:01:47]} 31... Qc7
{[%clk 0:00:28.6]} 32. h5 {[%clk 0:01:44]} 32... g6 {[%clk 0:00:26.9]} 33. h6
{[%clk 0:01:42.9]} 33... Qf7 {[%clk 0:00:26.7]} 34. Qc2 {[%clk 0:01:41.3]} 34...
Qf5 {[%clk 0:00:26.4]} 35. Qxf5 {[%clk 0:01:41.1]} 35... gxf5 {[%clk 0:00:26.4]}
36. Nh5 {[%clk 0:01:39.4]} 36... Kf7 {[%clk 0:00:24.6]} 37. Nf6 {[%clk 0:01:37]}
37... a5 {[%clk 0:00:23.2]} 38. Kf3 {[%clk 0:01:30.8]} 38... a4 {[%clk
0:00:21.8]} 39. bxa4 {[%clk 0:01:29.5]} 39... bxa4 {[%clk 0:00:22.7]} 40. a3
{[%clk 0:01:26.9]} 40... Kg6 {[%clk 0:00:19.8]} 41. Kf4 {[%clk 0:01:25.4]} 41...
Kf7 {[%clk 0:00:19.8]} 42. Kg3 {[%clk 0:01:24.4]} 42... Ng6 {[%clk 0:00:20.7]}
43. Nxh7 {[%clk 0:01:23.9]} 43... Ne7 {[%clk 0:00:19.8]} 44. Nf6 {[%clk
0:01:22.3]} 44... Kg6 {[%clk 0:00:20]} 45. h7 {[%clk 0:01:20.2]} 45... Kg7
{[%clk 0:00:19.8]} 46. Kf4 {[%clk 0:01:20.4]} 46... Nc6 {[%clk 0:00:19.6]} 47.
Ke3 {[%clk 0:01:20.9]} 47... Ne7 {[%clk 0:00:18.2]} 48. Kd3 {[%clk 0:01:20.1]}
48... Ng6 {[%clk 0:00:16.8]} 49. Nd7 {[%clk 0:01:15.6]} 49... Kxh7 {[%clk
0:00:15.8]} 50. Nc5 {[%clk 0:01:16.2]} 50... Nf8 {[%clk 0:00:15.9]} 51. Nxa4
{[%clk 0:01:15.9]} 51... Kg6 {[%clk 0:00:16.8]} 52. Nc5 {[%clk 0:01:15.5]} 52...
Kxg5 {[%clk 0:00:16.7]} 53. a4 {[%clk 0:01:13.9]} 53... f4 {[%clk 0:00:16.9]}
54. a5 {[%clk 0:01:11.9]} 54... f3 {[%clk 0:00:17.4]} 55. Ke3 {[%clk 0:01:11.4]}
55... Kg4 {[%clk 0:00:17.7]} 56. Kf2 {[%clk 0:01:11.9]} 56... Ng6 {[%clk
0:00:17.1]} 57. Nxe6 {[%clk 0:01:10.7]} 57... Nh4 {[%clk 0:00:17.1]} 58. a6
{[%clk 0:01:09.8]} 58... Kf5 {[%clk 0:00:17.4]} 59. a7 {[%clk 0:01:09.4]} 59...
Kxe6 {[%clk 0:00:16.4]} 60. a8=Q {[%clk 0:01:09.5]} 60... Kf5 {[%clk 0:00:15.9]}
61. Qh8 {[%clk 0:01:07.8]} 61... Kg4 {[%clk 0:00:14.1]} 62. Qxh4+ {[%clk
0:01:03.9]} 62... Kxh4 {[%clk 0:00:13.7]} 63. e6 {[%clk 0:01:04]} 1-0

[Event "Early-Titled-Tuesday-Blitz-May-07-2024"]
[Site "Chess.com"]
[Date "2024.05.07"]
[Round "6"]
[White "Arteler"]
[Black "JiiHart"]
[Result "0-1"]
[WhiteElo "2322"]
[BlackElo "2171"]
[TimeControl "180+1"]
[EndTime "9:11:30 PDT"]
[Termination "JiiHart won by checkmate"]

1. e4 {[%clk 0:03:00.9]} 1... c5 {[%clk 0:02:59.4]} 2. Nf3 {[%clk 0:03:00.5]}
2... Nc6 {[%clk 0:02:59.2]} 3. d4 {[%clk 0:03:01]} 3... cxd4 {[%clk 0:02:59.1]}
4. Nxd4 {[%clk 0:03:01.7]} 4... Nf6 {[%clk 0:02:59.5]} 5. Nc3 {[%clk 0:03:02.1]}
5... d6 {[%clk 0:02:59.8]} 6. Be3 {[%clk 0:02:58.7]} 6... e5 {[%clk 0:02:58.8]}
7. Ndb5 {[%clk 0:02:53]} 7... a6 {[%clk 0:02:52.4]} 8. Na3 {[%clk 0:02:53.2]}
8... Rb8 {[%clk 0:02:43.8]} 9. Bg5 {[%clk 0:02:52.4]} 9... Be7 {[%clk 0:02:37]}
10. Bxf6 {[%clk 0:02:52.7]} 10... gxf6 {[%clk 0:02:34.4]} 11. Nd5 {[%clk
0:02:53.3]} 11... f5 {[%clk 0:02:32.4]} 12. Bd3 {[%clk 0:02:20.2]} 12... Be6
{[%clk 0:02:15.5]} 13. c4 {[%clk 0:01:50.3]} 13... f4 {[%clk 0:02:07.5]} 14. Nc2
{[%clk 0:01:38.8]} 14... b5 {[%clk 0:01:46.1]} 15. Ncb4 {[%clk 0:01:32]} 15...
Nxb4 {[%clk 0:01:40.3]} 16. Nxb4 {[%clk 0:01:32.9]} 16... Qa5 {[%clk 0:01:26.9]}
17. a3 {[%clk 0:01:13.6]} 17... bxc4 {[%clk 0:01:25.7]} 18. Bc2 {[%clk
0:01:12.2]} 18... O-O {[%clk 0:01:22.5]} 19. O-O {[%clk 0:01:11.1]} 19... Qc5
{[%clk 0:01:09.6]} 20. Nxa6 {[%clk 0:01:09.4]} 20... Qb6 {[%clk 0:01:06.3]} 21.
Nxb8 {[%clk 0:01:09.6]} 21... Rxb8 {[%clk 0:01:06.6]} 22. Rb1 {[%clk 0:01:09.3]}
22... Qb7 {[%clk 0:01:03.2]} 23. Qd2 {[%clk 0:00:59.8]} 23... Kh8 {[%clk
0:00:56.3]} 24. Rfd1 {[%clk 0:00:59.7]} 24... Rg8 {[%clk 0:00:55.1]} 25. Kh1
{[%clk 0:00:55.2]} 25... f5 {[%clk 0:00:49.2]} 26. f3 {[%clk 0:00:53.1]} 26...
Bd7 {[%clk 0:00:30.3]} 27. exf5 {[%clk 0:00:52.2]} 27... Bc6 {[%clk 0:00:30.4]}
28. Qe2 {[%clk 0:00:49.6]} 28... Bf6 {[%clk 0:00:28.7]} 29. Rxd6 {[%clk
0:00:48.1]} 29... Bh4 {[%clk 0:00:19.5]} 30. Qxc4 {[%clk 0:00:44]} 30... Bxf3
{[%clk 0:00:17.4]} 31. Qxg8+ {[%clk 0:00:09.5]} 31... Kxg8 {[%clk 0:00:16.6]}
32. Rg1 {[%clk 0:00:04.7]} 32... Bf2 {[%clk 0:00:14.8]} 33. Bb3+ {[%clk
0:00:02.8]} 33... Kf8 {[%clk 0:00:14.1]} 34. gxf3 {[%clk 0:00:03.7]} 34... Bxg1
{[%clk 0:00:14]} 35. Kxg1 {[%clk 0:00:04.6]} 35... Qxf3 {[%clk 0:00:14.2]} 36.
Bc2 {[%clk 0:00:04.5]} 36... Qe3+ {[%clk 0:00:14.1]} 37. Kf1 {[%clk 0:00:04.6]}
37... f3 {[%clk 0:00:14.5]} 38. Rd8+ {[%clk 0:00:04.2]} 38... Ke7 {[%clk
0:00:14.4]} 39. Rc8 {[%clk 0:00:03.5]} 39... Qe2+ {[%clk 0:00:14.6]} 40. Kg1
{[%clk 0:00:04.4]} 40... Qg2# {[%clk 0:00:14.8]} 0-1

[Event "Early-Titled-Tuesday-Blitz-May-07-2024"]
[Site "Chess.com"]
[Date "2024.05.07"]
[Round "6"]
[White "Shuvalov"]
[Black "ferdipy"]
[Result "1-0"]
[WhiteElo "2575"]
[BlackElo "2331"]
[TimeControl "180+1"]
[EndTime "9:11:31 PDT"]
[Termination "Shuvalov won by checkmate"]

1. d4 {[%clk 0:02:34.1]} 1... e5 {[%clk 0:01:20.3]} 2. dxe5 {[%clk 0:02:32.4]}
2... d6 {[%clk 0:01:19.6]} 3. Bf4 {[%clk 0:02:29.4]} 3... Nc6 {[%clk 0:01:17]}
4. exd6 {[%clk 0:02:26]} 4... Qf6 {[%clk 0:01:13.8]} 5. Qc1 {[%clk 0:02:21.6]}
5... Bxd6 {[%clk 0:01:11.4]} 6. Bxd6 {[%clk 0:02:21.1]} 6... Qxd6 {[%clk
0:01:09.9]} 7. Nf3 {[%clk 0:02:17.9]} 7... Bg4 {[%clk 0:00:59.6]} 8. Nbd2 {[%clk
0:02:14.5]} 8... O-O-O {[%clk 0:00:59.2]} 9. e3 {[%clk 0:02:10.4]} 9... Nf6
{[%clk 0:00:59]} 10. Be2 {[%clk 0:02:10.1]} 10... h5 {[%clk 0:00:58]} 11. h3
{[%clk 0:02:05.5]} 11... Bf5 {[%clk 0:00:55.1]} 12. a3 {[%clk 0:02:00.4]} 12...
g5 {[%clk 0:00:52.4]} 13. Nxg5 {[%clk 0:01:53.8]} 13... h4 {[%clk 0:00:52.1]}
14. Nxf7 {[%clk 0:01:50.5]} 14... Qe7 {[%clk 0:00:49.6]} 15. Nxh8 {[%clk
0:01:49.8]} 15... Rxh8 {[%clk 0:00:49.3]} 16. b4 {[%clk 0:01:31.9]} 16... Rg8
{[%clk 0:00:42.2]} 17. Rg1 {[%clk 0:00:27.1]} 17... Qe5 {[%clk 0:00:37.6]} 18.
Rb1 {[%clk 0:00:19.6]} 18... Qh2 {[%clk 0:00:35.8]} 19. Nf3 {[%clk 0:00:19.2]}
19... Qd6 {[%clk 0:00:29.4]} 20. Qd2 {[%clk 0:00:19.2]} 20... Qe7 {[%clk
0:00:28.2]} 21. Qc3 {[%clk 0:00:18.4]} 21... Ne4 {[%clk 0:00:26.4]} 22. Qb2
{[%clk 0:00:16.8]} 22... Rd8 {[%clk 0:00:19.7]} 23. Rd1 {[%clk 0:00:16.8]} 23...
Rf8 {[%clk 0:00:18.4]} 24. b5 {[%clk 0:00:13.3]} 24... Na5 {[%clk 0:00:16.6]}
25. Qe5 {[%clk 0:00:13.3]} 25... Qxa3 {[%clk 0:00:14.9]} 26. Nd4 {[%clk
0:00:11.1]} 26... Qc3+ {[%clk 0:00:14.1]} 27. Kf1 {[%clk 0:00:10.8]} 27... Bd7
{[%clk 0:00:09.5]} 28. Bf3 {[%clk 0:00:09.5]} 28... Nd2+ {[%clk 0:00:08.2]} 29.
Ke2 {[%clk 0:00:06.6]} 29... Ndc4 {[%clk 0:00:07]} 30. Qe7 {[%clk 0:00:02.9]}
30... Re8 {[%clk 0:00:06.3]} 31. Qxh4 {[%clk 0:00:01.6]} 31... Rxe3+ {[%clk
0:00:06.5]} 32. fxe3 {[%clk 0:00:00.9]} 32... Qxe3+ {[%clk 0:00:07.4]} 33. Kf1
{[%clk 0:00:01.4]} 33... Nd2+ {[%clk 0:00:04.3]} 34. Rxd2 {[%clk 0:00:02]} 34...
Qxd2 {[%clk 0:00:04.8]} 35. Qh8+ {[%clk 0:00:02.2]} 35... Be8 {[%clk 0:00:05.3]}
36. Qxe8# {[%clk 0:00:02.6]} 1-0

[Event "Early-Titled-Tuesday-Blitz-May-07-2024"]
[Site "Chess.com"]
[Date "2024.05.07"]
[Round "6"]
[White "martinmena"]
[Black "kyawmyataung2005"]
[Result "1-0"]
[WhiteElo "2124"]
[BlackElo "2284"]
[TimeControl "180+1"]
[EndTime "9:11:34 PDT"]
[Termination "martinmena won on time"]

1. c4 {[%clk 0:03:00.9]} 1... c5 {[%clk 0:02:58.9]} 2. g3 {[%clk 0:02:58.3]}
2... Nc6 {[%clk 0:02:58.1]} 3. Bg2 {[%clk 0:02:55.2]} 3... g6 {[%clk 0:02:57.3]}
4. Nc3 {[%clk 0:02:49.6]} 4... Bg7 {[%clk 0:02:56.8]} 5. e4 {[%clk 0:02:49.4]}
5... e5 {[%clk 0:02:55]} 6. Nge2 {[%clk 0:02:49.3]} 6... Nge7 {[%clk 0:02:54]}
7. O-O {[%clk 0:02:46.7]} 7... O-O {[%clk 0:02:53.2]} 8. d3 {[%clk 0:02:44.9]}
8... d6 {[%clk 0:02:53.1]} 9. Be3 {[%clk 0:02:45.2]} 9... Be6 {[%clk 0:02:52.3]}
10. Qd2 {[%clk 0:02:43.7]} 10... Qd7 {[%clk 0:02:47]} 11. Bh6 {[%clk 0:02:41.8]}
11... Bh3 {[%clk 0:02:44.2]} 12. Bxg7 {[%clk 0:02:41.3]} 12... Kxg7 {[%clk
0:02:39.6]} 13. f4 {[%clk 0:02:29]} 13... Bxg2 {[%clk 0:02:38.2]} 14. Kxg2
{[%clk 0:02:29.9]} 14... f6 {[%clk 0:02:36.3]} 15. Nd5 {[%clk 0:02:27.6]} 15...
Rac8 {[%clk 0:02:26.6]} 16. a3 {[%clk 0:02:17.4]} 16... Nxd5 {[%clk 0:02:21.9]}
17. cxd5 {[%clk 0:02:06.9]} 17... Nd4 {[%clk 0:02:21.6]} 18. Nxd4 {[%clk
0:02:05.7]} 18... cxd4 {[%clk 0:02:12.4]} 19. Rac1 {[%clk 0:01:55.2]} 19... Qb5
{[%clk 0:01:57.1]} 20. Rc2 {[%clk 0:01:23.3]} 20... Rxc2 {[%clk 0:01:26.5]} 21.
Qxc2 {[%clk 0:01:21.2]} 21... Rf7 {[%clk 0:01:25.9]} 22. Rc1 {[%clk 0:01:10.8]}
22... f5 {[%clk 0:01:18]} 23. fxe5 {[%clk 0:00:40.7]} 23... fxe4 {[%clk
0:01:11.9]} 24. dxe4 {[%clk 0:00:20.4]} 24... dxe5 {[%clk 0:01:10.1]} 25. d6
{[%clk 0:00:20.1]} 25... Rf6 {[%clk 0:00:23]} 26. Qc7+ {[%clk 0:00:17.7]} 26...
Kh6 {[%clk 0:00:18.5]} 27. d7 {[%clk 0:00:13.3]} 27... Qe2+ {[%clk 0:00:16.8]}
28. Kh3 {[%clk 0:00:04.7]} 28... g5 {[%clk 0:00:11.7]} 29. Qxe5 {[%clk
0:00:03.5]} 29... g4+ {[%clk 0:00:03.3]} 30. Kh4 {[%clk 0:00:03.3]} 30... Qxh2+
{[%clk 0:00:03.8]} 31. Kxg4 {[%clk 0:00:03.7]} 31... Qe2+ {[%clk 0:00:03.6]} 32.
Kh3 {[%clk 0:00:03.3]} 1-0